[Event "Titled Tuesday Blitz June 20 Late 2023"]
[White "ElDivis"]
[Black "Vila Dupla, Aurelio"]
[BlackFideId "2203383"]
[WhiteElo "2537"]
[BlackElo "2009"]
[Result "1-0"]
[Round "8"]
[TimeControl "180+2"]
[Date "2023.06.20"]
[WhiteClock "0:00:24"]
[BlackClock "0:00:00"]
[Board "78"]

1. e4 {[%clk 0:03:00]}  c5 {[%clk 0:02:59]} 2. Nf3 {[%clk 0:03:01]}  d6 {[%clk 0:02:59]} 3. d4 {[%clk 0:03:01]}  cxd4 {[%clk 0:02:59]} 4. Nxd4 {[%clk 0:03:02]}  Nf6 {[%clk 0:02:59]} 5. Nc3 {[%clk 0:03:03]}  g6 {[%clk 0:02:59]} 6. Be3 {[%clk 0:03:03]}  Bg7 {[%clk 0:02:59]} 7. f3 {[%clk 0:03:03]}  O-O {[%clk 0:02:59]} 8. Qd2 {[%clk 0:03:03]}  Nc6 {[%clk 0:02:59]} 9. Nb3 {[%clk 0:03:04]}  a5 {[%clk 0:02:48]} 10. a4 {[%clk 0:02:53]}  Be6 {[%clk 0:02:45]} 11. O-O-O {[%clk 0:02:50]}  Rc8 {[%clk 0:02:33]} 12. Kb1 {[%clk 0:02:49]}  Nd7 {[%clk 0:02:26]} 13. Nd5 {[%clk 0:02:36]}  Bxd5 {[%clk 0:02:12]} 14. exd5 {[%clk 0:02:33]}  Nb4 {[%clk 0:01:58]} 15. c3 {[%clk 0:02:33]}  Na6 {[%clk 0:01:57]} 16. h4 {[%clk 0:02:28]}  Nac5 {[%clk 0:01:56]} 17. Nxc5 {[%clk 0:02:25]}  Nxc5 {[%clk 0:01:57]} 18. h5 {[%clk 0:02:25]}  Nxa4 {[%clk 0:01:51]} 19. hxg6 {[%clk 0:02:26]}  fxg6 {[%clk 0:01:51]} 20. Bd4 {[%clk 0:02:19]}  Bxd4 {[%clk 0:01:15]} 21. Qxd4 {[%clk 0:02:20]}  Nc5 {[%clk 0:01:14]} 22. Bc4 {[%clk 0:02:00]}  Qd7 {[%clk 0:00:53]} 23. g4 {[%clk 0:01:40]}  Rf7 {[%clk 0:00:48]} 24. Rh6 {[%clk 0:01:33]}  b5 {[%clk 0:00:47]} 25. Rdh1 {[%clk 0:01:31]}  Rg7 {[%clk 0:00:28]} 26. g5 {[%clk 0:01:06]}  Qf5+ {[%clk 0:00:20]} 27. Ka2 {[%clk 0:01:05]}  Qf7 {[%clk 0:00:20]} 28. Bxb5 {[%clk 0:01:02]}  Rb8 {[%clk 0:00:20]} 29. Bc6 {[%clk 0:00:57]}  e5 {[%clk 0:00:20]} 30. dxe6 {[%clk 0:00:53]}  Qc7 {[%clk 0:00:19]} 31. Bd5 {[%clk 0:00:48]}  Kf8 {[%clk 0:00:00]} 32. Rxg6 {[%clk 0:00:24]} 1-0


[Site "https://www.chess.com"]

[Event "Titled Tuesday Blitz June 20 Late 2023"]
[White "Bueno, Alfeu Junior Varela"]
[Black "Zaitsev, Alexander"]
[WhiteFideId "2108879"]
[BlackFideId "4164490"]
[WhiteElo "2175"]
[BlackElo "2373"]
[Result "0-1"]
[Round "8"]
[TimeControl "180+2"]
[Date "2023.06.20"]
[WhiteClock "0:00:00"]
[BlackClock "0:00:03"]
[Board "86"]

1. e4 {[%clk 0:03:00]}  c5 {[%clk 0:02:59]} 2. Nc3 {[%clk 0:03:01]}  Nc6 {[%clk 0:02:58]} 3. f4 {[%clk 0:03:02]}  g6 {[%clk 0:02:58]} 4. Nf3 {[%clk 0:03:02]}  Bg7 {[%clk 0:02:59]} 5. Bb5 {[%clk 0:03:02]}  Nd4 {[%clk 0:02:58]} 6. O-O {[%clk 0:03:02]}  a6 {[%clk 0:02:39]} 7. Bc4 {[%clk 0:03:02]}  e6 {[%clk 0:02:35]} 8. d3 {[%clk 0:03:02]}  b5 {[%clk 0:02:30]} 9. Bb3 {[%clk 0:03:01]}  Ne7 {[%clk 0:02:21]} 10. Nxd4 {[%clk 0:03:01]}  cxd4 {[%clk 0:02:21]} 11. Ne2 {[%clk 0:03:02]}  O-O {[%clk 0:02:07]} 12. Ng3 {[%clk 0:03:01]}  f5 {[%clk 0:02:06]} 13. a4 {[%clk 0:02:51]}  Bb7 {[%clk 0:02:03]} 14. Bd2 {[%clk 0:02:48]}  Kh8 {[%clk 0:01:58]} 15. Bb4 {[%clk 0:02:46]}  Rf7 {[%clk 0:01:45]} 16. Qe1 {[%clk 0:02:29]}  Nc6 {[%clk 0:01:37]} 17. Bd6 {[%clk 0:02:28]}  Bf8 {[%clk 0:01:22]} 18. Bxf8 {[%clk 0:02:24]}  Qxf8 {[%clk 0:01:19]} 19. exf5 {[%clk 0:02:13]}  gxf5 {[%clk 0:01:18]} 20. Qf2 {[%clk 0:02:08]}  Qg7 {[%clk 0:01:12]} 21. axb5 {[%clk 0:02:07]}  axb5 {[%clk 0:01:12]} 22. Rxa8+ {[%clk 0:02:07]}  Bxa8 {[%clk 0:01:13]} 23. Ra1 {[%clk 0:01:38]}  Rf8 {[%clk 0:01:13]} 24. Qe2 {[%clk 0:01:14]}  Rg8 {[%clk 0:01:13]} 25. Qf2 {[%clk 0:00:50]}  Bb7 {[%clk 0:01:10]} 26. Qe2 {[%clk 0:00:49]}  Ne7 {[%clk 0:01:03]} 27. Ra7 {[%clk 0:00:47]}  Bc6 {[%clk 0:00:59]} 28. Bxe6 {[%clk 0:00:42]}  dxe6 {[%clk 0:00:57]} 29. Qxe6 {[%clk 0:00:43]}  Re8 {[%clk 0:00:47]} 30. Rc7 {[%clk 0:00:39]}  Bd5 {[%clk 0:00:40]} 31. Rxe7 {[%clk 0:00:26]}  Bxe6 {[%clk 0:00:36]} 32. Rxe8+ {[%clk 0:00:23]}  Bg8 {[%clk 0:00:36]} 33. Nxf5 {[%clk 0:00:21]}  Qd7 {[%clk 0:00:16]} 34. Re5 {[%clk 0:00:16]}  Be6 {[%clk 0:00:15]} 35. Ng3 {[%clk 0:00:13]}  Bd5 {[%clk 0:00:15]} 36. Nf5 {[%clk 0:00:11]}  Be6 {[%clk 0:00:13]} 37. Ng3 {[%clk 0:00:11]}  Kg8 {[%clk 0:00:13]} 38. Ne4 {[%clk 0:00:09]}  Qf7 {[%clk 0:00:04]} 39. Ng5 {[%clk 0:00:00]}  Qxf4 {[%clk 0:00:03]} 0-1


[Site "https://www.chess.com"]

[Event "Titled Tuesday Blitz June 20 Late 2023"]
[White "Balla, Tamas-Kristof"]
[Black "Gerbelli Neto, Eduardo"]
[WhiteFideId "1208497"]
[BlackFideId "2103281"]
[WhiteElo "2334"]
[BlackElo "2178"]
[Result "1-0"]
[Round "8"]
[TimeControl "180+2"]
[Date "2023.06.20"]
[WhiteClock "0:00:26"]
[BlackClock "0:00:15"]
[Board "90"]

1. e4 {[%clk 0:03:00]}  e5 {[%clk 0:02:59]} 2. Nf3 {[%clk 0:02:58]}  Nc6 {[%clk 0:02:58]} 3. Bc4 {[%clk 0:02:59]}  Nf6 {[%clk 0:02:57]} 4. Ng5 {[%clk 0:02:58]}  d5 {[%clk 0:02:57]} 5. exd5 {[%clk 0:02:54]}  Nd4 {[%clk 0:02:57]} 6. c3 {[%clk 0:02:51]}  b5 {[%clk 0:02:57]} 7. Bf1 {[%clk 0:02:50]}  Nxd5 {[%clk 0:02:56]} 8. cxd4 {[%clk 0:02:47]}  Qxg5 {[%clk 0:02:56]} 9. Bxb5+ {[%clk 0:02:48]}  Kd8 {[%clk 0:02:56]} 10. O-O {[%clk 0:02:48]}  Bb7 {[%clk 0:02:53]} 11. Qf3 {[%clk 0:02:44]}  Rb8 {[%clk 0:02:53]} 12. Qg3 {[%clk 0:02:35]}  Qxg3 {[%clk 0:02:44]} 13. hxg3 {[%clk 0:02:30]}  exd4 {[%clk 0:02:38]} 14. d3 {[%clk 0:02:20]}  Bd6 {[%clk 0:02:00]} 15. Nd2 {[%clk 0:02:09]}  Nf6 {[%clk 0:01:53]} 16. Nc4 {[%clk 0:02:04]}  Bxg2 {[%clk 0:01:42]} 17. Kxg2 {[%clk 0:01:48]}  Rxb5 {[%clk 0:01:41]} 18. Nxd6 {[%clk 0:01:47]}  cxd6 {[%clk 0:01:42]} 19. b3 {[%clk 0:01:41]}  Nd5 {[%clk 0:01:37]} 20. Bb2 {[%clk 0:01:38]}  Nc3 {[%clk 0:01:37]} 21. Rac1 {[%clk 0:01:35]}  Rc5 {[%clk 0:01:37]} 22. Rfe1 {[%clk 0:01:29]}  Kd7 {[%clk 0:01:37]} 23. Rh1 {[%clk 0:01:17]}  h6 {[%clk 0:01:37]} 24. Rh4 {[%clk 0:01:17]}  Ne2 {[%clk 0:01:16]} 25. Rxc5 {[%clk 0:00:37]}  dxc5 {[%clk 0:01:17]} 26. Re4 {[%clk 0:00:26]}  Nc3 {[%clk 0:00:46]} 27. Bxc3 {[%clk 0:00:26]}  dxc3 {[%clk 0:00:47]} 28. Rc4 {[%clk 0:00:27]}  Kd6 {[%clk 0:00:44]} 29. Rxc3 {[%clk 0:00:27]}  Re8 {[%clk 0:00:44]} 30. Rc4 {[%clk 0:00:25]}  Re2 {[%clk 0:00:43]} 31. Ra4 {[%clk 0:00:26]}  Re7 {[%clk 0:00:40]} 32. Kf3 {[%clk 0:00:24]}  Kd5 {[%clk 0:00:40]} 33. Ra6 {[%clk 0:00:20]}  Kd4 {[%clk 0:00:34]} 34. Rc6 {[%clk 0:00:19]}  Rd7 {[%clk 0:00:26]} 35. Rc8 {[%clk 0:00:18]}  Re7 {[%clk 0:00:24]} 36. Rc6 {[%clk 0:00:17]}  Rd7 {[%clk 0:00:24]} 37. Ke2 {[%clk 0:00:18]}  Re7+ {[%clk 0:00:24]} 38. Kd2 {[%clk 0:00:19]}  f5 {[%clk 0:00:20]} 39. Rd6+ {[%clk 0:00:19]}  Ke5 {[%clk 0:00:20]} 40. Rd8 {[%clk 0:00:19]}  Rc7 {[%clk 0:00:19]} 41. Re8+ {[%clk 0:00:18]}  Kf6 {[%clk 0:00:19]} 42. Re3 {[%clk 0:00:19]}  g5 {[%clk 0:00:18]} 43. Re8 {[%clk 0:00:18]}  h5 {[%clk 0:00:17]} 44. Rh8 {[%clk 0:00:18]}  Kg6 {[%clk 0:00:18]} 45. Ke3 {[%clk 0:00:18]}  Re7+ {[%clk 0:00:17]} 46. Kf3 {[%clk 0:00:19]}  Rd7 {[%clk 0:00:17]} 47. Ke3 {[%clk 0:00:19]}  Re7+ {[%clk 0:00:17]} 48. Kd2 {[%clk 0:00:20]}  Rd7 {[%clk 0:00:17]} 49. a3 {[%clk 0:00:20]}  Rb7 {[%clk 0:00:16]} 50. Kc3 {[%clk 0:00:20]}  Rd7 {[%clk 0:00:15]} 51. b4 {[%clk 0:00:20]}  cxb4+ {[%clk 0:00:15]} 52. axb4 {[%clk 0:00:21]}  Rc7+ {[%clk 0:00:15]} 53. Kd2 {[%clk 0:00:21]}  Rd7 {[%clk 0:00:15]} 54. Ke3 {[%clk 0:00:21]}  Re7+ {[%clk 0:00:16]} 55. Kd4 {[%clk 0:00:21]}  Rd7+ {[%clk 0:00:16]} 56. Kc4 {[%clk 0:00:22]}  Rb7 {[%clk 0:00:17]} 57. d4 {[%clk 0:00:22]}  f4 {[%clk 0:00:16]} 58. gxf4 {[%clk 0:00:22]}  gxf4 {[%clk 0:00:17]} 59. d5 {[%clk 0:00:23]}  Rd7 {[%clk 0:00:15]} 60. Kc5 {[%clk 0:00:23]}  Kg5 {[%clk 0:00:15]} 61. Kc6 {[%clk 0:00:23]}  Rf7 {[%clk 0:00:15]} 62. d6 {[%clk 0:00:24]}  Kg4 {[%clk 0:00:15]} 63. d7 {[%clk 0:00:24]}  Rxd7 {[%clk 0:00:15]} 64. Kxd7 {[%clk 0:00:25]}  Kf3 {[%clk 0:00:15]} 65. Rxh5 {[%clk 0:00:24]}  Kxf2 {[%clk 0:00:16]} 66. Kc7 {[%clk 0:00:25]}  Ke3 {[%clk 0:00:16]} 67. Kb7 {[%clk 0:00:25]}  f3 {[%clk 0:00:16]} 68. Rf5 {[%clk 0:00:25]}  f2 {[%clk 0:00:17]} 69. Rxf2 {[%clk 0:00:26]}  Kxf2 {[%clk 0:00:15]} 70. Kxa7 {[%clk 0:00:26]} 1-0


[Site "https://www.chess.com"]

[Event "Titled Tuesday Blitz June 20 Late 2023"]
[White "Kaplan, Avi Harrison"]
[Black "Rodriguez Polo, Mateo"]
[WhiteFideId "30934559"]
[BlackFideId "24509396"]
[WhiteElo "1983"]
[BlackElo "2117"]
[Result "0-1"]
[Round "8"]
[TimeControl "180+2"]
[Date "2023.06.20"]
[WhiteClock "0:00:03"]
[BlackClock "0:00:05"]
[Board "92"]

1. b3 {[%clk 0:03:00]}  d5 {[%clk 0:02:50]} 2. Bb2 {[%clk 0:03:01]}  Nf6 {[%clk 0:02:43]} 3. e3 {[%clk 0:03:01]}  e6 {[%clk 0:02:42]} 4. f4 {[%clk 0:02:59]}  c5 {[%clk 0:02:42]} 5. Nf3 {[%clk 0:02:59]}  Nc6 {[%clk 0:02:41]} 6. Bb5 {[%clk 0:03:00]}  Bd7 {[%clk 0:02:39]} 7. O-O {[%clk 0:02:58]}  Be7 {[%clk 0:02:39]} 8. d3 {[%clk 0:02:56]}  O-O {[%clk 0:02:36]} 9. Nbd2 {[%clk 0:02:55]}  Rc8 {[%clk 0:02:33]} 10. Bxc6 {[%clk 0:02:52]}  Bxc6 {[%clk 0:02:32]} 11. Ne5 {[%clk 0:02:53]}  Nd7 {[%clk 0:02:29]} 12. Qg4 {[%clk 0:02:30]}  g6 {[%clk 0:01:52]} 13. Rf3 {[%clk 0:02:10]}  f5 {[%clk 0:01:30]} 14. Qh3 {[%clk 0:01:55]}  Nxe5 {[%clk 0:01:26]} 15. Bxe5 {[%clk 0:01:49]}  Bf6 {[%clk 0:01:22]} 16. Qh6 {[%clk 0:01:46]}  Bxe5 {[%clk 0:01:18]} 17. fxe5 {[%clk 0:01:47]}  d4 {[%clk 0:01:09]} 18. Rh3 {[%clk 0:01:31]}  Rc7 {[%clk 0:01:07]} 19. Nc4 {[%clk 0:01:13]}  Qd5 {[%clk 0:00:48]} 20. Rg3 {[%clk 0:00:57]}  dxe3 {[%clk 0:00:48]} 21. Re1 {[%clk 0:00:44]}  b5 {[%clk 0:00:42]} 22. Nxe3 {[%clk 0:00:36]}  Qxe5 {[%clk 0:00:35]} 23. Rf1 {[%clk 0:00:29]}  f4 {[%clk 0:00:19]} 24. Ng4 {[%clk 0:00:29]}  Qd4+ {[%clk 0:00:18]} 25. Kh1 {[%clk 0:00:29]}  Rcf7 {[%clk 0:00:15]} 26. Rh3 {[%clk 0:00:27]}  Qg7 {[%clk 0:00:15]} 27. Ne5 {[%clk 0:00:15]}  Qxe5 {[%clk 0:00:11]} 28. Qh4 {[%clk 0:00:11]}  Qg7 {[%clk 0:00:09]} 29. Qg4 {[%clk 0:00:11]}  f3 {[%clk 0:00:09]} 30. gxf3 {[%clk 0:00:10]}  Qf6 {[%clk 0:00:06]} 31. Kg2 {[%clk 0:00:11]}  Qf5 {[%clk 0:00:06]} 32. Kg3 {[%clk 0:00:08]}  Qxg4+ {[%clk 0:00:06]} 33. Kxg4 {[%clk 0:00:09]}  Rf4+ {[%clk 0:00:06]} 34. Kg5 {[%clk 0:00:08]}  Kg7 {[%clk 0:00:05]} 35. Rxh7+ {[%clk 0:00:03]}  Kxh7 {[%clk 0:00:05]} 36. Re1 {[%clk 0:00:03]}  R8f5# {[%clk 0:00:05]} 0-1


[Site "https://www.chess.com"]

[Event "Titled Tuesday Blitz June 20 Late 2023"]
[White "Rodriguez Santiago, Jaime"]
[Black "Doknjas, Neil"]
[WhiteFideId "3100898"]
[BlackFideId "2617587"]
[WhiteElo "2025"]
[BlackElo "2152"]
[Result "0-1"]
[Round "8"]
[TimeControl "180+2"]
[Date "2023.06.20"]
[WhiteClock "0:00:45"]
[BlackClock "0:00:09"]
[Board "93"]

1. c4 {[%clk 0:03:00]}  e6 {[%clk 0:02:59]} 2. Nf3 {[%clk 0:02:59]}  d5 {[%clk 0:02:58]} 3. g3 {[%clk 0:02:59]}  Nf6 {[%clk 0:02:58]} 4. Bg2 {[%clk 0:02:59]}  Be7 {[%clk 0:02:59]} 5. d4 {[%clk 0:02:57]}  O-O {[%clk 0:02:59]} 6. O-O {[%clk 0:02:57]}  dxc4 {[%clk 0:02:59]} 7. Na3 {[%clk 0:02:49]}  Bxa3 {[%clk 0:02:58]} 8. bxa3 {[%clk 0:02:49]}  c5 {[%clk 0:02:56]} 9. Bb2 {[%clk 0:02:38]}  Nd5 {[%clk 0:02:40]} 10. Qc2 {[%clk 0:02:34]}  cxd4 {[%clk 0:02:18]} 11. Qxc4 {[%clk 0:02:24]}  Nb6 {[%clk 0:01:36]} 12. Qxd4 {[%clk 0:02:20]}  Qxd4 {[%clk 0:01:36]} 13. Nxd4 {[%clk 0:02:19]}  Na4 {[%clk 0:01:18]} 14. Rab1 {[%clk 0:02:02]}  Nxb2 {[%clk 0:00:58]} 15. Rxb2 {[%clk 0:02:00]}  e5 {[%clk 0:00:59]} 16. Nc2 {[%clk 0:01:47]}  Nc6 {[%clk 0:00:54]} 17. Nb4 {[%clk 0:01:44]}  Bd7 {[%clk 0:00:51]} 18. Rd1 {[%clk 0:01:40]}  Rfd8 {[%clk 0:00:41]} 19. Nd5 {[%clk 0:01:39]}  Rab8 {[%clk 0:00:36]} 20. Rbd2 {[%clk 0:01:33]}  Be6 {[%clk 0:00:29]} 21. Ne7+ {[%clk 0:01:06]}  Kf8 {[%clk 0:00:23]} 22. Nxc6 {[%clk 0:01:05]}  Rxd2 {[%clk 0:00:23]} 23. Rxd2 {[%clk 0:01:05]}  bxc6 {[%clk 0:00:23]} 24. Bxc6 {[%clk 0:01:05]}  Bh3 {[%clk 0:00:21]} 25. f3 {[%clk 0:01:04]}  Rb1+ {[%clk 0:00:20]} 26. Kf2 {[%clk 0:01:04]}  Rh1 {[%clk 0:00:19]} 27. Ke3 {[%clk 0:01:00]}  Rxh2 {[%clk 0:00:18]} 28. g4 {[%clk 0:01:00]}  h5 {[%clk 0:00:14]} 29. gxh5 {[%clk 0:00:54]}  Be6 {[%clk 0:00:14]} 30. Rd8+ {[%clk 0:00:48]}  Ke7 {[%clk 0:00:14]} 31. Ra8 {[%clk 0:00:47]}  Bc4 {[%clk 0:00:10]} 32. Rxa7+ {[%clk 0:00:46]}  Kd6 {[%clk 0:00:10]} 33. Be8 {[%clk 0:00:45]}  Rxe2# {[%clk 0:00:09]} 0-1


[Site "https://www.chess.com"]

[Event "Titled Tuesday Blitz June 20 Late 2023"]
[White "rionelG"]
[Black "Ai, Evan"]
[BlackFideId "2094770"]
[WhiteElo "2262"]
[BlackElo "1963"]
[Result "1-0"]
[Round "8"]
[TimeControl "180+2"]
[Date "2023.06.20"]
[WhiteClock "0:00:06"]
[BlackClock "0:00:04"]
[Board "96"]

1. e4 {[%clk 0:02:58]}  e5 {[%clk 0:03:00]} 2. Nf3 {[%clk 0:02:58]}  Nc6 {[%clk 0:03:00]} 3. d4 {[%clk 0:02:56]}  exd4 {[%clk 0:02:59]} 4. Nxd4 {[%clk 0:02:57]}  Bc5 {[%clk 0:02:57]} 5. Nxc6 {[%clk 0:02:57]}  dxc6 {[%clk 0:02:53]} 6. Qxd8+ {[%clk 0:02:55]}  Kxd8 {[%clk 0:02:54]} 7. Bd3 {[%clk 0:02:55]}  Be6 {[%clk 0:02:52]} 8. O-O {[%clk 0:02:55]}  Ke7 {[%clk 0:02:46]} 9. Nc3 {[%clk 0:02:55]}  b5 {[%clk 0:02:42]} 10. Bd2 {[%clk 0:02:47]}  Nf6 {[%clk 0:02:34]} 11. h3 {[%clk 0:02:45]}  h6 {[%clk 0:02:30]} 12. Rfe1 {[%clk 0:02:45]}  g5 {[%clk 0:02:28]} 13. Be3 {[%clk 0:02:42]}  Nd7 {[%clk 0:02:27]} 14. Nd1 {[%clk 0:02:31]}  Rhg8 {[%clk 0:02:18]} 15. c3 {[%clk 0:02:27]}  Bxe3 {[%clk 0:02:08]} 16. Nxe3 {[%clk 0:02:26]}  Ne5 {[%clk 0:01:54]} 17. Bc2 {[%clk 0:02:23]}  Rad8 {[%clk 0:01:51]} 18. a3 {[%clk 0:02:20]}  Rd2 {[%clk 0:01:43]} 19. Rad1 {[%clk 0:02:20]}  Rgd8 {[%clk 0:01:38]} 20. Rxd2 {[%clk 0:02:20]}  Rxd2 {[%clk 0:01:39]} 21. Rd1 {[%clk 0:02:21]}  Rxd1+ {[%clk 0:01:35]} 22. Nxd1 {[%clk 0:02:22]}  a5 {[%clk 0:01:26]} 23. Ne3 {[%clk 0:02:12]}  a4 {[%clk 0:01:18]} 24. f3 {[%clk 0:02:10]}  Ng6 {[%clk 0:01:16]} 25. Kf2 {[%clk 0:02:08]}  Nf4 {[%clk 0:01:10]} 26. Ng4 {[%clk 0:02:07]}  h5 {[%clk 0:01:09]} 27. Ne5 {[%clk 0:02:02]}  Kd6 {[%clk 0:01:09]} 28. Nd3 {[%clk 0:02:02]}  Ng6 {[%clk 0:00:53]} 29. Ke3 {[%clk 0:02:00]}  c5 {[%clk 0:00:43]} 30. f4 {[%clk 0:01:09]}  Nh4 {[%clk 0:00:11]} 31. g3 {[%clk 0:01:07]}  Ng2+ {[%clk 0:00:11]} 32. Kf2 {[%clk 0:01:06]}  Bxh3 {[%clk 0:00:11]} 33. fxg5 {[%clk 0:01:01]}  h4 {[%clk 0:00:06]} 34. gxh4 {[%clk 0:00:59]}  c4 {[%clk 0:00:05]} 35. e5+ {[%clk 0:00:40]}  Ke6 {[%clk 0:00:04]} 36. Kg3 {[%clk 0:00:22]}  cxd3 {[%clk 0:00:03]} 37. Bxd3 {[%clk 0:00:23]}  Kxe5 {[%clk 0:00:02]} 38. Bxb5 {[%clk 0:00:19]}  Nf4 {[%clk 0:00:02]} 39. Bxa4 {[%clk 0:00:18]}  Be6 {[%clk 0:00:02]} 40. Bc2 {[%clk 0:00:17]}  Nh5+ {[%clk 0:00:03]} 41. Kf3 {[%clk 0:00:16]}  Bf5 {[%clk 0:00:03]} 42. Bxf5 {[%clk 0:00:14]}  Kxf5 {[%clk 0:00:04]} 43. a4 {[%clk 0:00:14]}  Nf4 {[%clk 0:00:04]} 44. a5 {[%clk 0:00:14]}  Nd3 {[%clk 0:00:05]} 45. b4 {[%clk 0:00:13]}  Ne5+ {[%clk 0:00:05]} 46. Ke3 {[%clk 0:00:11]}  Nd7 {[%clk 0:00:05]} 47. c4 {[%clk 0:00:10]}  c6 {[%clk 0:00:04]} 48. b5 {[%clk 0:00:09]}  Nb8 {[%clk 0:00:04]} 49. a6 {[%clk 0:00:08]}  c5 {[%clk 0:00:03]} 50. a7 {[%clk 0:00:08]}  Nd7 {[%clk 0:00:04]} 51. a8=Q {[%clk 0:00:08]}  Ne5 {[%clk 0:00:05]} 52. Qd5 {[%clk 0:00:08]}  f6 {[%clk 0:00:04]} 53. gxf6 {[%clk 0:00:08]}  Kxf6 {[%clk 0:00:05]} 54. Ke4 {[%clk 0:00:07]}  Nf7 {[%clk 0:00:05]} 55. Qxc5 {[%clk 0:00:06]}  Ng5+ {[%clk 0:00:04]} 56. Qxg5+ {[%clk 0:00:06]} 1-0


[Site "https://www.chess.com"]

[Event "Titled Tuesday Blitz June 20 Late 2023"]
[White "Hajiyev, Kanan"]
[Black "Slavin, Alexey"]
[WhiteFideId "13404148"]
[BlackFideId "24104388"]
[WhiteElo "2115"]
[BlackElo "2264"]
[Result "1-0"]
[Round "8"]
[TimeControl "180+2"]
[Date "2023.06.20"]
[WhiteClock "0:00:10"]
[BlackClock "0:00:04"]
[Board "100"]

1. d4 {[%clk 0:02:26]}  Nc6 {[%clk 0:02:59]} 2. e3 {[%clk 0:02:24]}  e5 {[%clk 0:02:58]} 3. d5 {[%clk 0:02:24]}  Nce7 {[%clk 0:02:58]} 4. f4 {[%clk 0:02:25]}  exf4 {[%clk 0:02:56]} 5. exf4 {[%clk 0:02:25]}  Ng6 {[%clk 0:02:56]} 6. Nf3 {[%clk 0:02:25]}  Bc5 {[%clk 0:02:52]} 7. Bd3 {[%clk 0:02:16]}  Nf6 {[%clk 0:02:50]} 8. Qe2+ {[%clk 0:02:17]}  Qe7 {[%clk 0:02:41]} 9. Qxe7+ {[%clk 0:02:16]}  Nxe7 {[%clk 0:02:41]} 10. c4 {[%clk 0:02:16]}  d6 {[%clk 0:02:39]} 11. Nc3 {[%clk 0:02:16]}  a6 {[%clk 0:02:39]} 12. h3 {[%clk 0:02:13]}  Bf5 {[%clk 0:02:35]} 13. Be2 {[%clk 0:02:06]}  h5 {[%clk 0:02:33]} 14. Bd2 {[%clk 0:02:03]}  Ng6 {[%clk 0:02:32]} 15. O-O-O {[%clk 0:02:02]}  O-O-O {[%clk 0:02:32]} 16. Ng5 {[%clk 0:01:57]}  Rd7 {[%clk 0:02:18]} 17. Bf3 {[%clk 0:01:58]}  Nh4 {[%clk 0:02:12]} 18. Rhe1 {[%clk 0:01:36]}  Nxf3 {[%clk 0:02:08]} 19. Nxf3 {[%clk 0:01:36]}  Bd3 {[%clk 0:01:53]} 20. Be3 {[%clk 0:01:09]}  Bxe3+ {[%clk 0:01:50]} 21. Rxe3 {[%clk 0:01:10]}  Bg6 {[%clk 0:01:26]} 22. Rde1 {[%clk 0:01:06]}  b6 {[%clk 0:01:25]} 23. Nh4 {[%clk 0:00:55]}  Bh7 {[%clk 0:01:15]} 24. Re7 {[%clk 0:00:49]}  Rxe7 {[%clk 0:01:12]} 25. Rxe7 {[%clk 0:00:50]}  Rf8 {[%clk 0:01:11]} 26. Nf3 {[%clk 0:00:46]}  Kd8 {[%clk 0:01:11]} 27. Re1 {[%clk 0:00:44]}  Bd3 {[%clk 0:01:08]} 28. b3 {[%clk 0:00:43]}  Re8 {[%clk 0:01:08]} 29. Rxe8+ {[%clk 0:00:42]}  Kxe8 {[%clk 0:01:09]} 30. Kd2 {[%clk 0:00:43]}  Bf1 {[%clk 0:01:06]} 31. Ne1 {[%clk 0:00:43]}  h4 {[%clk 0:01:02]} 32. Ke3 {[%clk 0:00:42]}  Nh5 {[%clk 0:01:00]} 33. Ne4 {[%clk 0:00:39]}  b5 {[%clk 0:00:54]} 34. Kf2 {[%clk 0:00:30]}  f5 {[%clk 0:00:48]} 35. Nxd6+ {[%clk 0:00:17]}  cxd6 {[%clk 0:00:48]} 36. Kxf1 {[%clk 0:00:18]}  bxc4 {[%clk 0:00:46]} 37. bxc4 {[%clk 0:00:19]}  Nxf4 {[%clk 0:00:46]} 38. Kf2 {[%clk 0:00:16]}  g5 {[%clk 0:00:44]} 39. Kf3 {[%clk 0:00:17]}  Kd7 {[%clk 0:00:45]} 40. Ke3 {[%clk 0:00:17]}  Kc7 {[%clk 0:00:44]} 41. Kd4 {[%clk 0:00:17]}  Kb6 {[%clk 0:00:44]} 42. Nf3 {[%clk 0:00:16]}  Nxg2 {[%clk 0:00:27]} 43. Nxg5 {[%clk 0:00:16]}  Nf4 {[%clk 0:00:25]} 44. Nf3 {[%clk 0:00:16]}  Nxh3 {[%clk 0:00:24]} 45. Nxh4 {[%clk 0:00:16]}  Nf4 {[%clk 0:00:21]} 46. Nxf5 {[%clk 0:00:16]}  Ne2+ {[%clk 0:00:21]} 47. Kd3 {[%clk 0:00:16]}  Nc1+ {[%clk 0:00:21]} 48. Kd4 {[%clk 0:00:10]}  Nxa2 {[%clk 0:00:18]} 49. Nxd6 {[%clk 0:00:11]}  Kc7 {[%clk 0:00:18]} 50. c5 {[%clk 0:00:10]}  Nb4 {[%clk 0:00:18]} 51. Ne8+ {[%clk 0:00:10]}  Kd7 {[%clk 0:00:18]} 52. Nf6+ {[%clk 0:00:09]}  Kc7 {[%clk 0:00:18]} 53. Kc4 {[%clk 0:00:10]}  Nc2 {[%clk 0:00:18]} 54. d6+ {[%clk 0:00:10]}  Kc6 {[%clk 0:00:16]} 55. Nd5 {[%clk 0:00:09]}  Na3+ {[%clk 0:00:15]} 56. Kb3 {[%clk 0:00:10]}  Nb5 {[%clk 0:00:14]} 57. Kb4 {[%clk 0:00:09]}  Kxd5 {[%clk 0:00:14]} 58. d7 {[%clk 0:00:10]}  a5+ {[%clk 0:00:07]} 59. Kxb5 {[%clk 0:00:09]}  Ke6 {[%clk 0:00:04]} 60. d8=Q {[%clk 0:00:10]} 1-0


[Site "https://www.chess.com"]

[Event "Titled Tuesday Blitz June 20 Late 2023"]
[White "Ismayil, Malak"]
[Black "Skaric, Djuro"]
[WhiteFideId "13412604"]
[BlackFideId "934569"]
[WhiteElo "1868"]
[BlackElo "2282"]
[Result "1-0"]
[Round "8"]
[TimeControl "180+2"]
[Date "2023.06.20"]
[WhiteClock "0:00:48"]
[BlackClock "0:01:49"]
[Board "102"]

1. e4 {[%clk 0:03:00]}  d6 {[%clk 0:03:00]} 2. d4 {[%clk 0:02:59]}  g6 {[%clk 0:03:01]} 3. Nc3 {[%clk 0:02:59]}  Bg7 {[%clk 0:03:01]} 4. Be3 {[%clk 0:02:58]}  Nf6 {[%clk 0:03:01]} 5. f3 {[%clk 0:02:56]}  Nc6 {[%clk 0:03:00]} 6. Qd2 {[%clk 0:02:56]}  h5 {[%clk 0:03:00]} 7. Bd3 {[%clk 0:02:53]}  a6 {[%clk 0:03:00]} 8. Nge2 {[%clk 0:02:52]}  b5 {[%clk 0:02:59]} 9. a3 {[%clk 0:02:49]}  e5 {[%clk 0:02:59]} 10. d5 {[%clk 0:02:41]}  Ne7 {[%clk 0:02:58]} 11. h3 {[%clk 0:02:38]}  Bb7 {[%clk 0:02:57]} 12. f4 {[%clk 0:02:36]}  Qd7 {[%clk 0:02:53]} 13. fxe5 {[%clk 0:02:35]}  dxe5 {[%clk 0:02:53]} 14. Bg5 {[%clk 0:02:33]}  Nc8 {[%clk 0:02:51]} 15. O-O {[%clk 0:02:27]}  Nh7 {[%clk 0:02:50]} 16. Bh4 {[%clk 0:02:15]}  O-O {[%clk 0:02:48]} 17. Qe3 {[%clk 0:02:09]}  Nd6 {[%clk 0:02:47]} 18. Ng3 {[%clk 0:01:57]}  Kh8 {[%clk 0:02:35]} 19. Rf2 {[%clk 0:01:50]}  f5 {[%clk 0:02:34]} 20. exf5 {[%clk 0:01:50]}  gxf5 {[%clk 0:02:33]} 21. Nxh5 {[%clk 0:01:50]}  f4 {[%clk 0:02:33]} 22. Qf3 {[%clk 0:01:46]}  Nf5 {[%clk 0:02:29]} 23. Qg4 {[%clk 0:01:39]}  Rf7 {[%clk 0:02:29]} 24. Nxg7 {[%clk 0:01:11]}  Nxg7 {[%clk 0:02:26]} 25. Qxd7 {[%clk 0:00:56]}  Rxd7 {[%clk 0:02:25]} 26. Re1 {[%clk 0:00:55]}  Bxd5 {[%clk 0:02:12]} 27. Rxe5 {[%clk 0:00:53]}  Rg8 {[%clk 0:01:58]} 28. Rxd5 {[%clk 0:00:51]}  Rxd5 {[%clk 0:01:51]} 29. Nxd5 {[%clk 0:00:52]}  Ne6 {[%clk 0:01:52]} 30. Bxh7 {[%clk 0:00:49]}  Kxh7 {[%clk 0:01:49]} 31. Nf6+ {[%clk 0:00:48]} 1-0


[Site "https://www.chess.com"]